bitfinex/quotes_ETHUSD_20260108
["timestamp","ask_amount","ask_price","bid_price","bid_amount"]
[1767853927988,8.60595198,3118.5,3117.3,2.15229805]
[1767853928505,5.39928211,3118.5,3117.3,2.15229805]
[1767853928694,5.39928211,3118.5,3117.3,2.2196716]
[1767853929010,2.07905491,3118.4,3117.1,3.21009349]
[1767853929377,8.49280599,3118.3,3117.1,3.21009349]
[1767853929577,8.49280599,3118.3,3117.1,5.47690039]
[1767853929808,8.49280599,3118.3,3117.4,0.002]
[1767853930106,0.001,3117.9,3117.4,0.002]
[1767853930311,0.001,3117.9,3117.4,0.22888069]
[1767853931515,0.001,3117.9,3117.4,3.43668206]
[1767853931690,0.001,3117.9,3117.4,5.70348896]
[1767853932017,0.001,3117.9,3117.1,0.002]
[1767853932210,0.001,3117.9,3117.1,4.0500469]
[1767853932391,0.001,3117.9,3117.1,0.842]
[1767853933088,0.001,3117.9,3117.3,3.20790112]
[1767853933521,0.001,3117.9,3117.2,3.20797049]
[1767853933723,0.001,3117.9,3117.1,6.31687626]
[1767853934206,0.001,3117.9,3117.2,2.2668069]
[1767853934582,0.001,3117.9,3117.1,4.05006936]
[1767853934784,0.001,3117.9,3117.1,6.31687626]
[1767853935909,0.001,3117.9,3117.1,9.52498636]
[1767853936106,0.001,3117.9,3117.1,6.31687626]
[1767853936405,2.08005491,3117.9,3117.1,0.842]
[1767853937320,2.2880604,3117.9,3117.1,0.842]
[1767853937888,5.28644473,3117.8,3117.1,0.842]
[1767853938512,3.20830856,3117.9,3117.1,0.842]
[1767853939522,0.001,3117.9,3117.1,6.31685158]
[1767853939683,0.001,3117.9,3117.2,2.2668069]
[1767853939883,0.001,3117.9,3117.2,5.47480255]
[1767853940293,0.001,3117.9,3117.2,2.2668069]
[1767853940719,2.07905491,3118.4,3117.3,2.2668069]
[1767853940720,3.20680501,3118.4,3117.3,2.2668069]
[1767853941116,3.20680501,3118.4,3117.3,2.33418045]
[1767853941320,2.07905491,3118.3,3117.1,4.05006888]
[1767853941620,2.07905491,3118.3,3117.2,0.84]
[1767853941994,8.49301167,3118.2,3117.2,0.84]
[1767853942418,2.07905491,3118.1,3117.2,0.84]
[1767853942918,2.07905491,3118.1,3117.4,0.002]
[1767853943115,0.001,3117.9,3117.4,0.002]
[1767853944005,2.08005491,3117.9,3117.4,0.002]
[1767853944198,2.92949722,3117.9,3117.4,0.002]
[1767853944996,2.07905491,3117.8,3117.4,0.002]
[1767853946229,2.07905491,3117.6,3117.1,0.002]
[1767853948138,2.07905491,3117.4,3117.1,0.002]
[1767853948597,2.07905491,3117.7,3117.1,0.002]
[1767853948798,3.20837962,3117.9,3117.1,0.002]
[1767853949232,3.20738982,3117.8,3117.1,0.002]
[1767853950004,3.20832005,3117.9,3117.1,0.002]
[1767853950314,3.73705755,3117.9,3117.1,0.002]
[1767853950630,3.20832005,3117.9,3117.1,0.002]
[1767853951038,3.20830189,3117.9,3117.1,0.002]
[1767853952136,3.20830189,3117.9,3117.1,2.18706185]
[1767853952137,0.001,3117.9,3117.1,2.18706185]
[1767853952350,0.001,3117.9,3117.2,0.84]
[1767853952505,0.001,3117.9,3117.2,3.02506185]
[1767853952831,0.001,3117.9,3117.3,2.18506185]
[1767853954817,0.001,3117.9,3117.4,0.002]
[1767853956435,0.001,3117.9,3117.4,2.18706185]
[1767853957354,0.001,3117.9,3117.4,0.002]
[1767853957519,2.15707356,3117.9,3117.4,0.002]
[1767853958108,0.001,3117.9,3117.4,0.002]
[1767853959910,0.001,3117.9,3117.4,2.18706185]
[1767853961836,0.001,3117.9,3117.5,3.20769847]
[1767853962342,0.001,3117.9,3117.5,5.39276032]
[1767853962919,0.001,3117.9,3117.5,2.18506185]
[1767853963245,0.001,3117.9,3117.4,0.002]
[1767853965519,0.001,3117.9,3117.4,2.18706185]
[1767853966423,0.001,3117.6,3117.5,3.20769847]
[1767853966627,2.15607356,3118.3,3117.5,3.20769847]
[1767853968350,2.15607356,3118.5,3117.6,2.18506185]
[1767853969627,2.15607356,3118.5,3117.6,5.39261577]
[1767853969945,1.57511045,3119.1,3117.6,5.39261577]
[1767853969946,2.15607356,3118.8,3117.7,2.18506185]
[1767853970142,5.36245093,3118.8,3117.9,2.18506185]
[1767853970445,2.15607356,3118.9,3117.9,2.18506185]
[1767853972540,3.20636142,3118.8,3117.9,2.18506185]
[1767853972739,3.20636142,3118.8,3118.0,2.10728561]
[1767853974039,5.36235839,3118.9,3118.0,2.10728561]
[1767853975369,2.22284972,3118.8,3118.1,0.84]
[1767853975847,3.20620003,3119.0,3118.1,0.84]
[1767853976042,5.42893658,3119.1,3118.1,0.84]
[1767853976468,5.42893658,3119.1,3118.1,2.94728561]
[1767853977064,5.42893658,3119.1,3118.1,6.15430559]
[1767853977355,5.42893658,3119.1,3118.2,2.10728561]
[1767853977861,0.001,3118.6,3118.2,2.10728561]
[1767853979155,0.001,3118.6,3118.3,2.10728561]
[1767853980381,2.22284972,3119.3,3118.3,2.10728561]
[1767853980578,5.42874075,3119.3,3118.2,6.41390252]
[1767853980746,2.22284972,3119.2,3118.3,2.10728561]
[1767853980946,2.22284972,3119.2,3118.1,4.04703379]
[1767853981147,2.22284972,3119.0,3118.2,0.84]
[1767853981841,2.22284972,3119.3,3118.3,2.10728561]
[1767853982256,2.14021221,3119.7,3118.3,2.10728561]
[1767853982474,2.14021221,3119.7,3118.6,2.07565285]
[1767853982778,2.14021221,3120.3,3118.8,2.07565285]
[1767853982950,0.21402122,3120.2,3119.0,2.07565285]
[1767853983147,3.20502547,3120.1,3119.1,5.28170587]
[1767853983377,2.35423343,3120.2,3119.2,0.84]
[1767853983678,2.14021221,3120.1,3119.2,0.84]
[1767853983853,2.14021221,3120.1,3118.9,3.50450006]
[1767853984058,2.14021221,3119.9,3119.0,0.84]
[1767853984363,5.34484679,3120.5,3119.1,2.07565285]
[1767853984765,5.34484679,3120.5,3119.3,2.07565285]
[1767853985075,2.14021221,3120.5,3119.3,2.07565285]
[1767853985276,2.99512981,3120.5,3119.6,2.07565285]
[1767853985450,8.54903073,3120.7,3119.7,0.84]
[1767853985852,5.34462147,3120.7,3119.7,0.84]
[1767853986272,8.54903073,3120.7,3119.7,0.84]
[1767853986774,2.14021221,3120.6,3119.7,0.84]
[1767853987353,2.14021221,3120.4,3119.7,0.84]
[1767853987668,2.14021221,3120.4,3119.7,4.04541021]
[1767853987876,2.14021221,3120.4,3119.0,0.06737355]
[1767853988051,2.14021221,3120.4,3119.1,0.84]
[1767853988382,2.14021221,3120.4,3119.4,3.20572841]
[1767853988873,2.14021221,3120.4,3119.5,3.20563393]
[1767853989091,2.14021221,3120.3,3119.5,3.20561469]
[1767853989263,2.14021221,3120.3,3119.4,0.84]
[1767853989459,2.14021221,3120.2,3118.9,6.41251722]
[1767853989652,2.14021221,3120.2,3119.0,0.84]
[1767853990955,5.34516289,3120.2,3119.1,6.41210604]
[1767853991152,2.7659104,3120.1,3119.1,3.20605302]
[1767853991683,2.7659104,3120.1,3119.1,6.41210604]
[1767853991848,2.23139411,3120.1,3119.1,6.41210604]
[1767853992047,3.20482004,3120.3,3119.2,2.18284836]
[1767853993173,3.20572271,3120.4,3119.1,6.41210604]
[1767853993174,0.001,3120.4,3119.3,5.38869582]
[1767853993394,0.001,3120.4,3119.4,2.18284836]
[1767853994974,0.001,3120.4,3119.6,2.18284836]
[1767853995177,0.001,3120.4,3119.7,3.20543642]
[1767853995381,0.001,3120.4,3119.7,5.38828478]
[1767853996995,0.001,3120.4,3119.8,2.18284836]
[1767853998296,0.001,3120.4,3119.8,5.38816701]
[1767853998594,0.001,3120.4,3119.8,2.18284836]
[1767854000470,0.001,3120.4,3119.7,0.84]
[1767854000683,0.22323941,3120.3,3119.5,5.38848815]
[1767854000871,0.001,3120.4,3119.5,6.22848815]
[1767854002095,0.001,3120.4,3119.5,3.02284836]
[1767854003093,2.23139411,3120.3,3119.4,0.84]
[1767854003301,2.23139411,3120.3,3119.4,4.04569859]
[1767854004380,0.001,3120.4,3119.6,2.18284836]
[1767854005068,0.001,3120.4,3119.2,4.48805724]
[1767854005069,2.23139411,3120.2,3119.2,5.38876955]
[1767854005286,2.23139411,3120.2,3119.3,0.84]
[1767854005477,2.23139411,3120.2,3119.3,4.04580291]
[1767854006198,2.23139411,3120.2,3119.4,3.20574192]
[1767854006865,3.20573088,3120.4,3118.9,2.18284836]
[1767854006866,2.23139411,3120.0,3118.9,2.18284836]
[1767854007308,3.52540982,3120.3,3119.4,2.18284836]
[1767854008874,0.32057309,3120.3,3119.5,3.20564192]
[1767854009090,0.001,3120.4,3119.6,2.18284836]
[1767854009587,0.001,3120.4,3119.7,2.18284836]
[1767854011588,0.001,3120.4,3119.8,2.18284836]
[1767854012664,0.001,3120.4,3119.6,0.839]
[1767854012920,0.001,3120.1,3119.3,2.25582435]
[1767854013203,5.46131046,3120.0,3119.3,0.839]
[1767854013373,5.46131046,3120.0,3119.1,6.30087203]
[1767854013769,0.001,3120.1,3119.3,2.25582435]
[1767854016304,2.05194218,3120.1,3119.0,5.46197457]
[1767854016468,2.05194218,3120.1,3119.0,3.09482435]
[1767854016914,2.05194218,3120.1,3119.0,6.30095093]
[1767854017205,2.05094218,3119.9,3119.0,6.30095093]
[1767854017797,2.05094218,3119.9,3119.1,3.20602823]
[1767854018797,3.20606288,3120.1,3119.2,2.25582435]
[1767854019403,5.25700506,3120.1,3119.2,2.25582435]
[1767854020394,0.001,3120.1,3119.4,2.25582435]
[1767854024084,0.001,3120.1,3119.5,2.25582435]
[1767854024484,0.001,3120.1,3119.6,2.25582435]
[1767854025784,0.001,3120.1,3119.6,2.25782435]
[1767854025987,0.001,3119.8,3119.6,2.25782435]
[1767854030617,0.001,3119.8,3119.6,5.46335051]
[1767854030808,0.001,3119.8,3119.6,2.25782435]
[1767854032813,0.001,3119.8,3119.6,5.46334403]
[1767854033008,0.001,3119.8,3119.6,2.25782435]
[1767854035224,0.001,3119.8,3119.6,5.46333786]
[1767854035792,2.05194218,3120.1,3119.6,3.20751351]
[1767854036419,2.05194218,3120.1,3119.6,6.48042623]
[1767854036718,0.001,3120.1,3119.7,2.25582435]
[1767854037219,0.001,3120.1,3119.7,5.46123316]
[1767854037720,0.001,3120.1,3119.8,2.25582435]
[1767854039305,0.001,3120.1,3119.9,2.25582435]
[1767854042258,0.001,3120.4,3119.9,5.46105434]
[1767854042538,2.14292442,3120.9,3120.1,2.11374006]
[1767854042736,2.14292442,3120.9,3120.0,0.839]
[1767854042977,2.14292442,3120.8,3120.0,0.839]
[1767854043233,2.14292442,3120.8,3120.0,2.95274006]
[1767854043538,2.14292442,3120.8,3120.0,6.15784142]
[1767854044137,2.14292442,3120.7,3120.0,0.839]
[1767854044311,2.14292442,3120.7,3120.0,4.04412199]
[1767854045217,2.14292442,3120.7,3120.0,0.839]
[1767854045621,2.14292442,3120.7,3120.0,4.04412652]
[1767854046424,2.14292442,3120.7,3120.0,0.839]
[1767854047246,2.14292442,3120.6,3119.9,0.839]
[1767854047445,2.14292442,3120.5,3119.9,0.839]
[1767854047620,2.14292442,3120.4,3119.6,0.002]
[1767854049956,5.34764176,3120.4,3120.3,0.002]
[1767854050158,2.14292442,3120.3,3119.6,0.002]
[1767854050667,2.14292442,3120.3,3120.0,0.002]
[1767854050864,2.14292442,3120.1,3119.6,0.002]
[1767854058676,0.001,3120.4,3119.6,2.23227355]
[1767854059675,0.001,3120.4,3119.7,2.23027355]
[1767854061857,2.07295852,3120.4,3119.7,2.23027355]
[1767854062479,2.07295852,3120.4,3120.0,0.002]
[1767854062679,2.07195852,3120.3,3120.0,0.002]
[1767854063649,2.07195852,3120.3,3119.6,0.002]
[1767854063849,2.07195852,3120.2,3119.6,0.002]
[1767854065876,0.001,3120.4,3119.7,2.23027355]
[1767854066097,0.001,3120.4,3119.8,0.22322736]
[1767854066248,0.001,3120.4,3119.8,2.45350091]
[1767854068496,0.001,3120.4,3119.9,2.23027355]
[1767854070162,2.07295852,3120.4,3119.8,0.22322736]
[1767854070359,2.07295852,3120.4,3119.7,0.839]
[1767854071180,2.07195852,3120.3,3119.7,0.839]
[1767854073192,2.06876639,3120.4,3119.7,4.04442381]
[1767854073396,2.06876639,3120.4,3119.7,6.23751914]
[1767854073702,0.001,3120.4,3119.8,2.19309533]
[1767854074386,0.001,3120.4,3119.9,2.19309533]
[1767854074592,0.001,3120.4,3120.0,0.002]
[1767854074787,0.001,3120.1,3120.0,0.002]
[1767854074982,2.06776639,3120.3,3120.0,0.002]
[1767854076477,2.06776639,3121.1,3120.0,2.19509533]
[1767854076679,2.06776639,3121.0,3120.0,2.19509533]
[1767854077794,2.06776639,3121.0,3120.0,0.002]
[1767854078869,6.40799718,3121.1,3120.0,0.002]
[1767854078870,2.06776639,3120.8,3120.0,0.002]
[1767854081406,3.20440926,3120.7,3120.1,2.19309533]
[1767854082197,3.20440926,3120.7,3120.0,0.002]
[1767854082705,5.27217565,3120.7,3120.0,0.002]
[1767854084177,5.27217565,3120.7,3120.0,2.19509533]
[1767854084713,2.06776639,3121.3,3120.0,2.19509533]
[1767854084883,2.06776639,3121.2,3120.1,2.41260486]
[1767854087034,2.06776639,3121.0,3120.3,0.002]
[1767854087237,0.001,3120.4,3120.3,0.002]
[1767854094643,0.001,3120.4,3120.0,0.002]
[1767854094940,0.001,3120.4,3120.0,0.22150953]
[1767854095248,2.06876639,3120.4,3119.6,0.002]
[1767854095545,2.06876639,3120.4,3119.1,2.19309533]
[1767854095839,0.839,3120.3,3119.3,2.19509533]
[1767854096220,2.06776639,3120.2,3119.3,2.19509533]
[1767854096421,2.35844303,3120.1,3119.3,2.19509533]
[1767854096625,2.06776639,3119.9,3119.3,0.002]
[1767854098732,3.20533367,3119.8,3119.3,0.002]
[1767854098931,2.06776639,3119.7,3118.7,2.19509533]
[1767854099142,0.93184337,3119.6,3118.7,2.19509533]
[1767854099519,0.93184337,3119.6,3118.8,2.19309533]
[1767854099715,0.93184337,3119.6,3118.9,2.19309533]
[1767854099917,0.93184337,3119.6,3119.3,0.002]
[1767854101042,5.56352928,3120.1,3119.3,2.19509533]
[1767854101216,8.47793889,3120.1,3119.3,2.19509533]
[1767854101418,5.27285264,3120.1,3119.3,2.19509533]
[1767854101947,2.06776639,3120.0,3119.3,2.19509533]
[1767854102151,2.06776639,3120.0,3119.3,0.002]
[1767854102445,6.4101725,3120.1,3119.3,0.002]
[1767854102446,3.042685,3119.9,3119.3,0.002]
[1767854103151,3.20533367,3119.8,3119.3,0.002]
[1767854103349,5.31745021,3119.8,3119.3,0.002]
[1767854104052,3.20533367,3119.8,3119.3,0.002]
[1767854104249,4.05303943,3119.9,3119.3,0.002]
[1767854104420,0.6165156,3119.8,3119.3,0.002]
[1767854105140,2.11211654,3119.6,3118.7,0.002]
[1767854105520,2.11211654,3119.6,3118.7,2.2685783]
[1767854108060,2.11211654,3119.4,3118.7,0.002]
[1767854109352,2.11211654,3119.4,3118.7,2.2685783]
[1767854109568,5.317678,3119.6,3118.8,2.2665783]
[1767854109851,0.98068013,3119.5,3118.8,2.2665783]
[1767854110029,0.98068013,3119.5,3118.9,2.2665783]
[1767854110227,0.6165156,3119.8,3118.9,2.33395185]
[1767854110425,5.3170393,3120.2,3119.1,2.2665783]
[1767854110644,2.11211654,3120.1,3119.1,2.2665783]
[1767854111354,2.11211654,3120.1,3119.0,0.84]
[1767854111564,2.11211654,3119.9,3119.0,0.002]
[1767854111749,0.001,3119.3,3119.0,0.002]
[1767854116333,0.001,3119.3,3118.7,0.002]
[1767854116663,2.11311654,3119.3,3118.7,0.002]
[1767854117868,5.31899449,3119.3,3118.7,0.002]
[1767854119963,2.11211654,3119.0,3118.4,0.002]
[1767854120163,3.09102929,3118.9,3118.1,2.2665783]
[1767854122369,6.29736383,3118.9,3118.1,2.2665783]
[1767854123867,6.29736383,3118.9,3118.4,0.002]
[1767854124073,2.11211654,3118.8,3118.4,0.002]
[1767854124376,2.11211654,3118.6,3118.1,3.2070713]
[1767854124577,2.11211654,3119.2,3118.1,8.68073083]
[1767854124882,2.11211654,3119.2,3118.2,2.2665783]
[1767854126989,2.11211654,3119.2,3118.3,3.20687554]
[1767854127278,5.31806742,3119.2,3118.3,3.20687554]
[1767854127974,3.20595088,3119.2,3118.4,2.2665783]
[1767854128851,3.20595088,3119.2,3118.4,3.1065783]
[1767854129050,3.20595088,3119.2,3118.5,2.2665783]
[1767854129350,0.001,3119.3,3118.5,2.2665783]
[1767854129979,2.11311654,3119.3,3118.5,2.2665783]
[1767854130163,2.11211654,3119.2,3118.4,0.84]
[1767854130479,2.11211654,3119.2,3118.0,0.002]
[1767854130480,4.48912331,3118.8,3118.0,0.002]
[1767854130681,6.60123985,3118.8,3118.0,2.2685783]
[1767854130891,2.11211654,3118.8,3118.0,2.2685783]
[1767854131057,2.32332819,3118.8,3118.0,5.47569325]
[1767854131248,0.21121165,3118.8,3118.1,2.2665783]
[1767854131459,6.41231162,3119.0,3118.1,2.2665783]
[1767854131675,6.41231162,3119.0,3118.0,0.002]
[1767854132605,4.48912331,3118.8,3118.0,0.002]
[1767854132754,2.22306142,3118.7,3117.5,2.20270854]
[1767854132951,2.22306142,3118.5,3117.5,2.20270854]
[1767854133162,6.71218473,3118.5,3117.4,0.002]
[1767854133381,2.22306142,3118.1,3117.4,0.002]
[1767854135607,8.6374296,3118.0,3117.4,0.002]
[1767854137186,5.43024551,3118.0,3117.4,0.002]
[1767854137361,0.86373442,3117.9,3117.4,0.002]
[1767854137762,3.20738982,3117.8,3117.4,0.002]
[1767854138356,4.07105386,3117.9,3117.4,0.002]
[1767854141362,0.86373442,3117.9,3117.4,2.20470854]
[1767854141559,3.20714727,3118.1,3117.4,2.20470854]
[1767854142191,2.22306142,3118.3,3117.4,2.20470854]
[1767854142690,6.26975974,3118.5,3117.5,2.20270854]
[1767854142891,5.42975974,3118.5,3117.5,2.20270854]
[1767854143128,6.36051463,3118.5,3117.5,2.20270854]
[1767854143395,9.56721295,3118.5,3117.5,2.20270854]
[1767854143582,2.22306142,3118.4,3117.5,2.20270854]
[1767854144796,2.22306142,3118.4,3117.6,5.41030412]
[1767854144976,2.22306142,3118.4,3117.7,2.20270854]
[1767854145168,2.92623473,3118.4,3117.7,2.20270854]
[1767854145363,6.1330394,3118.4,3117.7,2.20270854]
[1767854145585,2.92623473,3118.4,3117.7,2.20270854]
[1767854146592,5.4296301,3118.6,3117.7,2.20270854]
[1767854147296,2.22306142,3118.5,3117.7,2.20270854]
[1767854147868,2.22306142,3118.5,3117.7,2.20470854]
[1767854148068,0.001,3118.2,3117.7,2.20470854]
[1767854149976,0.001,3118.2,3117.8,2.20270854]
[1767854150164,5.42924268,3119.0,3118.2,2.20270854]
[1767854151672,2.22306142,3119.0,3118.3,2.20270854]
[1767854152370,2.22406142,3119.3,3118.3,2.20270854]
[1767854152592,2.22306142,3119.2,3118.3,3.04270854]
[1767854152795,2.22306142,3119.0,3118.3,3.04270854]
[1767854153995,2.22306142,3118.9,3118.0,3.04270854]
[1767854154403,2.22306142,3118.9,3118.0,0.84]
[1767854155321,3.20636142,3118.8,3118.0,2.20270854]
[1767854155521,5.42942284,3118.8,3118.0,2.20270854]
[1767854155719,5.42942284,3118.8,3118.0,5.40988267]
[1767854155874,5.42942284,3118.8,3118.0,2.20270854]
[1767854158904,2.22306142,3118.7,3118.0,2.20270854]
[1767854159108,2.22306142,3118.7,3117.8,3.04270854]
[1767854159289,2.22306142,3118.5,3117.8,3.04270854]
[1767854160091,2.22306142,3118.5,3117.8,6.25009185]
[1767854161209,2.22306142,3118.5,3117.2,3.84737355]
[1767854161210,2.22306142,3116.8,3114.9,0.56736754]
[1767854161383,1.17636056,3116.9,3114.9,0.56736754]
[1767854161384,2.22306142,3116.4,3114.9,0.56736754]
[1767854161705,2.35070717,3116.1,3114.9,0.4000609]
[1767854162303,8.73199902,3116.0,3114.9,0.4000609]
[1767854162503,0.8731999,3115.9,3114.9,0.4000609]
[1767854163083,2.3135138,3115.8,3114.8,0.84]
[1767854164317,2.3135138,3115.6,3114.4,3.21085613]
[1767854164492,2.3135138,3115.6,3114.4,3.21081948]
[1767854165019,2.3135138,3115.6,3114.6,3.21059622]
[1767854165640,2.3135138,3115.6,3114.3,0.001]
[1767854166115,2.3135138,3115.6,3114.7,3.21056651]
[1767854166331,2.3135138,3115.4,3114.3,3.21199196]
[1767854167508,2.3135138,3115.4,3114.3,6.4229864]
[1767854167893,2.3135138,3115.4,3114.3,3.21199196]
[1767854168151,2.3135138,3115.4,3114.3,0.001]
[1767854168426,2.3135138,3115.2,3114.3,0.001]
[1767854168595,2.3135138,3115.0,3114.3,0.001]
[1767854169013,4.32857914,3114.9,3114.3,0.001]
[1767854169215,2.3135138,3114.8,3114.3,0.001]
[1767854170709,2.3135138,3115.2,3114.3,0.001]
[1767854171145,2.3135138,3115.2,3114.3,2.32412642]
[1767854171319,0.23135138,3115.1,3114.3,2.32412642]
[1767854171627,4.32857914,3115.4,3114.6,0.002]
[1767854171839,4.32857914,3115.4,3114.7,0.841]
[1767854172040,0.001,3115.3,3114.7,0.841]
[1767854173121,2.3145138,3115.3,3114.7,0.841]
[1767854174040,2.01506534,3115.2,3114.7,0.841]
[1767854174240,0.43295791,3115.1,3114.7,0.841]
[1767854174610,2.74647171,3115.1,3114.7,0.841]
[1767854176533,2.01506534,3115.0,3114.7,0.841]
[1767854176911,4.32857914,3115.0,3114.7,0.841]
[1767854177119,4.32857914,3115.0,3114.6,0.002]
[1767854177319,0.47615371,3114.9,3114.6,0.002]
[1767854178217,2.78966751,3114.9,3114.4,0.841]
[1767854178848,2.3135138,3114.8,3113.6,5.53474031]
[1767854179048,2.3135138,3114.8,3113.9,3.21137104]
[1767854179350,2.3145138,3115.3,3114.3,2.32312642]
[1767854179650,2.01506534,3115.2,3114.4,2.32312642]
[1767854180218,4.32857914,3115.2,3114.4,2.32312642]
[1767854180526,2.01506534,3115.2,3114.4,2.32312642]
[1767854180726,4.32857914,3115.2,3114.3,3.16412642]
[1767854181138,2.3135138,3115.1,3114.3,0.841]
[1767854181342,2.3135138,3115.1,3114.4,3.21089134]
[1767854181927,2.3135138,3115.1,3114.3,4.05197609]
[1767854182328,2.74647171,3115.1,3114.3,0.841]
[1767854182531,2.3135138,3115.0,3114.3,0.841]
[1767854183119,2.3135138,3115.0,3114.3,4.05195462]
[1767854183443,2.3135138,3115.0,3114.3,0.841]
[1767854183617,4.32857914,3114.9,3114.3,0.841]
[1767854183815,5.12575061,3114.9,3114.3,0.841]
[1767854184016,2.01506534,3114.9,3114.3,4.05197113]
[1767854184330,2.01506534,3114.9,3114.3,6.37509755]
[1767854184732,2.01606534,3114.9,3114.3,6.37509755]
[1767854187732,2.01606534,3114.9,3114.3,4.05197113]
[1767854188241,2.01606534,3114.9,3114.3,7.26296557]
[1767854188543,2.01606534,3114.9,3114.3,9.58609199]
[1767854188846,2.01606534,3114.9,3114.3,6.37509755]
[1767854189253,0.67819998,3114.8,3114.3,6.37509755]
[1767854189451,2.01606534,3114.9,3114.3,6.37509755]
[1767854189673,2.01606534,3114.9,3114.3,3.16412642]
[1767854189958,2.44902325,3114.9,3114.3,4.0519769]
[1767854190650,2.01606534,3114.9,3114.4,2.32312642]
[1767854190846,2.01606534,3114.9,3114.3,7.26297134]
[1767854190847,2.3135138,3115.2,3114.6,2.32312642]
[1767854191965,2.3135138,3115.2,3114.3,0.841]
[1767854192168,2.3135138,3115.2,3114.5,3.21074305]
[1767854192451,2.3135138,3115.2,3114.6,3.21067038]
[1767854193731,2.3135138,3115.2,3114.6,8.75375092]
[1767854193963,2.3135138,3115.2,3114.6,5.54306576]
[1767854195132,0.001,3115.3,3114.6,2.33239538]
[1767854195332,2.28059067,3115.3,3114.6,2.33239538]
[1767854195539,2.28059067,3115.3,3114.5,3.21071865]
[1767854195744,2.28059067,3115.3,3114.6,3.21066237]
[1767854195955,2.28059067,3115.3,3114.6,6.42134753]
[1767854196460,2.28059067,3115.3,3114.8,2.33239538]
[1767854196461,0.001,3115.3,3114.8,2.33239538]
[1767854196759,2.27959067,3116.2,3115.0,6.42054574]
[1767854197761,2.27959067,3116.2,3115.0,9.63081861]
[1767854198259,2.27959067,3116.2,3115.0,6.42054574]
[1767854199231,2.27959067,3116.1,3115.0,3.21027287]
[1767854200238,2.27959067,3116.1,3114.9,4.05134069]
[1767854201759,3.20845904,3116.8,3114.9,4.05134069]
[1767854201760,2.27959067,3115.9,3114.9,0.841]
[1767854202461,3.20917,3116.1,3115.0,2.33239538]
[1767854202763,2.27959067,3116.0,3114.9,4.05135535]
[1767854202960,2.27959067,3116.0,3114.9,3.17339538]
[1767854203182,2.27959067,3116.0,3114.9,6.38376632]
[1767854203370,2.27959067,3116.0,3115.0,2.33239538]
[1767854203541,0.86979307,3115.9,3115.0,2.33239538]
[1767854203867,4.07914842,3115.9,3115.0,5.54263793]
[1767854204269,2.27959067,3116.0,3115.0,5.54263793]
[1767854204563,3.20917066,3116.1,3115.1,2.33239538]
[1767854205463,2.27959067,3116.0,3115.0,6.42051542]
[1767854205766,2.27959067,3115.7,3114.9,0.841]
[1767854206362,2.27959067,3115.7,3114.9,4.051375]
[1767854206664,2.27959067,3115.7,3114.9,7.26175093]
[1767854206846,2.27959067,3115.7,3114.9,7.87487371]
[1767854207163,2.27959067,3115.7,3114.9,7.26175093]
[1767854207466,2.27959067,3115.7,3114.9,4.051375]
[1767854208058,3.20934619,3115.9,3115.0,2.33239538]
[1767854208250,0.001,3115.7,3115.0,2.33239538]
[1767854208564,0.001,3115.7,3115.1,2.33239538]
[1767854210067,9.6485674,3116.7,3115.7,2.25909613]
[1767854210271,2.20076001,3117.0,3115.8,3.10009613]
[1767854210445,2.20076001,3116.8,3115.8,0.841]
[1767854210765,0.5409076,3116.7,3115.8,0.841]
[1767854211545,3.20862478,3116.6,3115.8,0.841]
[1767854212072,3.7494707,3116.7,3115.8,4.05044395]
[1767854212565,5.95023071,3116.7,3115.8,0.841]
[1767854212864,0.5409076,3116.7,3115.9,2.25909613]
[1767854213755,3.74944624,3116.7,3115.9,2.25909613]
[1767854214442,0.37494462,3116.6,3115.9,2.25909613]
[1767854214844,0.37494462,3116.6,3115.9,5.46843502]
[1767854215339,0.37494462,3116.6,3115.9,2.25909613]
[1767854215769,0.37494462,3116.6,3115.9,5.46843284]
[1767854216159,0.37494462,3116.6,3115.9,2.25909613]
[1767854216581,3.58357833,3116.6,3115.9,2.25909613]
[1767854216791,6.79221204,3116.6,3115.9,2.25909613]
[1767854217088,2.55911784,3116.5,3115.8,0.841]
[1767854217961,3.20856837,3116.7,3115.8,0.841]
[1767854217962,2.20076001,3117.7,3116.0,2.25909613]
[1767854218149,3.20800718,3117.2,3116.2,2.25909613]
[1767854218454,5.40870495,3117.3,3116.4,2.25909613]
[1767854220171,0.001,3116.9,3116.4,2.25909613]
[1767854221140,0.001,3116.9,3116.5,2.25909613]
[1767854221368,0.001,3116.9,3116.6,2.25909613]
[1767854221863,0.22230614,3118.4,3116.6,2.25909613]
[1767854221864,2.20076001,3117.9,3116.6,2.25909613]
[1767854222249,5.40811331,3117.9,3116.8,2.35029229]
[1767854222450,2.20076001,3117.9,3117.0,2.35029229]
[1767854222670,3.20718488,3118.0,3117.0,2.35029229]
[1767854222671,0.54079449,3117.8,3117.0,2.35029229]
[1767854223187,2.28616078,3118.3,3117.1,2.41766584]
[1767854223673,0.22230614,3118.4,3117.3,2.35029229]
[1767854223850,0.001,3118.7,3117.5,2.35029229]
[1767854224044,0.001,3118.7,3117.9,2.35029229]
[1767854224266,0.001,3118.7,3118.3,2.35029229]
[1767854224457,5.49180783,3119.5,3118.3,2.35029229]
[1767854224656,2.28616078,3120.1,3118.5,2.35029229]
[1767854224953,2.28616078,3120.1,3118.7,2.35029229]
[1767854224954,3.20537135,3119.8,3118.7,2.35029229]
[1767854225149,3.20545221,3119.7,3118.7,2.35029229]
[1767854225353,3.20548205,3119.7,3118.7,2.35029229]
[1767854225654,2.28616078,3120.1,3118.7,2.35029229]
[1767854225852,5.49125856,3120.1,3118.7,2.35029229]
[1767854226053,3.20560651,3119.6,3118.7,2.35029229]
[1767854226577,6.4102564,3120.0,3118.7,2.35029229]
[1767854227179,2.28616078,3119.7,3118.6,0.841]
[1767854227497,2.28616078,3119.7,3118.6,3.19129229]
[1767854228380,2.28616078,3119.7,3118.7,2.35029229]
[1767854228581,3.20553917,3119.6,3118.7,2.35029229]
[1767854229749,3.20544503,3119.7,3118.7,2.35029229]
[1767854229980,3.20533582,3119.8,3118.8,2.4311494]
[1767854230278,3.20545792,3119.7,3118.8,2.4311494]
[1767854230575,8.69339966,3120.3,3119.2,2.4311494]
[1767854230784,5.48857962,3120.3,3119.3,3.2711494]
[1767854230978,8.69339966,3120.3,3119.3,3.2711494]